Cogmind - Beta 14 *** ADVENTURER MODE // 2024.08.29 @ 14:34:57 Player: Ms. V3-11A Result: Destroyed by IH-JN2(R) with Subdweller Machine Gun Performance ------------- Evolutions (0) 0 Regions Visited (2) 400 Robots Destroyed (20) 100 Value Destroyed (563) 563 Prototype IDs (4) 80 Alien Tech Used (0) 0 Bonus (0) 0 TOTAL SCORE: 1143 Bonus ------- None Cogmind --------- Core Integrity 0/250 Matter 290/300 Energy 84/100 System Corruption 0% Temperature Cool (0) Movement Treading (240) Ox1 Location -10/Subcaves Parts ------- > --- POWER (1) -------- (None) > --- PROPULSION (2) --- Light Treads > --- UTILITY (2) ------ Large Storage Unit > --- WEAPON (2) ------- Beam Cannon Light Assault Rifle > --- INVENTORY (15) --- Aluminum Leg Subdweller Monowheel Improved Heat Sink Large Storage Unit Subdweller Optics Light Assault Rifle Peak State ------------ > --- POWER ------------ Ion Engine > --- PROPULSION ------- Aluminum Leg Aluminum Leg > --- UTILITY ---------- Small Storage Unit Seismic Detector > --- WEAPON ----------- Medium Laser Beam Cannon > --- INVENTORY -------- Light Ion Engine Light Treads Light Treads Improved Heat Sink Light Armor Plating Beam Cannon Light Assault Rifle Light Assault Rifle [Rating: 8] Favorites ----------- Power Ion Engine Engine Ion Engine Propulsion Aluminum Leg Treads Light Treads Leg Aluminum Leg Utility Seismic Detector Device Seismic Detector Storage Small Storage Unit Protection Light Armor Plating Weapon Medium Laser Energy Gun Medium Laser Energy Cannon Beam Cannon Ballistic Gun Light Assault Rifle Build | -11 -10 -10 ------- Run | Yrd Mat Sub Slots Evolved . | . . . Power . | . . . Propulsion . | . . . Utility . | . . . Weapon . | . . . Parts Attached 11 | . 3 8 Power 1 | . . 1 Engine 1 | . . 1 Core . | . . . Reactor . | . . . Propulsion 3 | . . 3 Treads 3 | . . 3 Leg . | . . . Wheel . | . . . Hover . | . . . Flight . | . . . Utility 4 | . 2 2 Device 2 | . 1 1 Storage 1 | . 1 . Processor . | . . . Hackware . | . . . Protection 1 | . . 1 Artifact . | . . . Weapon 3 | . 1 2 Energy Gun . | . . . Energy Cannon 2 | . 1 1 Ballistic Gun 1 | . . 1 Ballistic Cannon . | . . . Launcher . | . . . Special Weapon . | . . . Impact Weapon . | . . . Slashing Weapon . | . . . Piercing Weapon . | . . . Special Melee Weapon . | . . . Unidentified Prototypes . | . . . Parts Lost 9 | . . 9 Power 2 | . . 2 Propulsion 3 | . . 3 Utility 2 | . . 2 Weapon 2 | . . 2 Highest Loss Streak 9 | . . 9 To Critical Strikes . | . . . Average Slot Usage (%) 97 | . 99 90 Engine 13 | . 14 12 Treads 1 | . . 10 Leg 26 | . 28 18 Device 11 | . 13 1 Storage 14 | . 14 14 Protection 1 | . . 8 Energy Gun 15 | . 16 10 Energy Cannon 11 | . 11 12 Peak Build Rating 8 | . 8 8 Average Rating 7 | . 7 7 On Entrance 6 | 6 6 8 Naked Turns . | . . . Heaviest Build 33 | 14 31 33 Greatest Support 40 | 20 20 40 Greatest Overweight (x) 1 | . 1 1 Average Overweight (x) . | . . . Largest Inventory Capacity 15 | . 15 15 Average Capacity 10 | . 9 15 Most Carried 12 | . 10 12 Average Carried 8 | . 7 9 Final Capacity 15 | 8 15 15 Final Carried 10 | 6 10 6 Class Distribution -------------------- 100% | Mutant Dominant Class ---------------- Mutant | -10/Materials Mutant | -10/Subcaves Resources | -11 -10 -10 ----------- Run | Yrd Mat Sub Matter Collected 285 | 200 27 58 Remotely . | . . . Salvage Created 620 | . 424 196 Parts 44 | . 29 15 Haulers Intercepted 1 | . 1 . Recyclers Shooed 1 | . 1 . Parts Field Recycled . | . . . Retrieved Matter . | . . . Parts Self-Destructed 3 | . . 3 Prevented . | . . . Kills | -11 -10 -10 ------- Run | Yrd Mat Sub Combat Hostiles Destroyed 18 | . 13 5 Guns 8 | . 7 1 Cannons 10 | . 6 4 Classes Destroyed 5 | . 4 1 Tunneler 1 | . 1 . Hauler 1 | . 1 . Swarmer 6 | . 6 . Grunt 7 | . 7 . Subdweller 5 | . . 5 Best Kill Streak 5 | . 5 3 Combat Bots Only 5 | . 5 3 Max Kills in Single Turn 1 | . 1 1 Gunslinging . | . . . Exploded . | . . . Melee . | . . . Uniques/NPCs Destroyed . | . . . Combat | -11 -10 -10 -------- Run | Yrd Mat Sub Hostile Shots Fired 124 | . 44 80 Missed 36 | . 16 20 Damage Taken 1353 | . 203 1150 Core 251 | . 47 204 Absorbed by Shields . | . . . Ignored by Resistances 384 | . 66 318 Core Remaining (%) 100 | 100 . . Volleys Fired 57 | . 29 28 Largest 2 | . 2 2 Hottest 110 | . 110 110 Shots Fired 110 | . 58 52 Gun 62 | . 34 28 Cannon 48 | . 24 24 Launcher . | . . . Special . | . . . Kinetic 13 | . . 13 Thermal 97 | . 58 39 Explosive . | . . . Electromagnetic . | . . . Robot Hit Streak 23 | . 7 23 Robot Miss Streak 2 | . 2 1 Penetration Max . | . . . Secondary Targets 1 | . 1 . Max Gunslinging Chain 1 | . 1 . Shots Hit Robots 87 | . 40 47 Core Hits 30 | . 20 10 Critical Kills . | . . . Critical Parts Destroyed . | . . . Critical Strikes 7 | . 3 4 Burn 6 | . 3 3 Destroy 1 | . . 1 Melee Attacks . | . . . Impact . | . . . Slashing . | . . . Piercing . | . . . Sneak Attacks . | . . . Combat Hostiles . | . . . Follow-up Attacks . | . . . Damage Inflicted 1263 | . 601 662 Guns 630 | . 338 292 Cannons 631 | . 261 370 Explosions . | . . . Melee . | . . . Ramming 2 | . 2 . Kinetic 103 | . . 103 Thermal 1158 | . 599 559 Explosive . | . . . Electromagnetic . | . . . Impact . | . . . Slashing . | . . . Piercing . | . . . Highest Corruption . | . . . Average Corruption . | . . . Corruption Purged . | . . . Corruption Blocked . | . . . Overload Shots . | . . . Overflow Damage . | . . . Projectiles . | . . . Explosions . | . . . Melee . | . . . Knockbacks . | . . . Impact . | . . . Kinetic . | . . . Secondary . | . . . Self-Inflicted Damage . | . . . Shots . | . . . Rammed . | . . . Targets Rammed 1 | . 1 . Kicked 1 | . 1 . Crushed . | . . . Highest Temperature 342 | . 342 250 Average Temperature 115 | . 123 79 Received Heat Transfer 417 | . 69 348 Siege Activations . | . . . Robots Corrupted . | . . . Combat Hostiles . | . . . Parts Fried . | . . . Impact Corruptions . | . . . Robots Melted . | . . . Combat Hostiles . | . . . Parts Melted 7 | . 4 3 Heat Transferred 3330 | . 1776 1554 Parts Sabotaged . | . . . Parts Stolen . | . . . Parts Stripped . | . . . Power Chain Reactions . | . . . Alert | -11 -10 -10 ------- Run | Yrd Mat Sub Peak Influence 294 | . 294 . Initial . | . . . Average 116 | . 116 . Maximum Alert Level 1 | . 1 . Low Security (%) 80 | . 80 . Level 1 19 | . 19 . Level 2 . | . . . Level 3 . | . . . Level 4 . | . . . Level 5 . | . . . High Security . | . . . Max Security . | . . . Squads Dispatched 1 | . 1 . Investigation 1 | . 1 . Extermination . | . . . Reinforcement . | . . . Assault . | . . . Garrison . | . . . Intercept . | . . . Searches Triggered . | . . . Construction Impeded . | . . . Haulers Reinforced . | . . . Active Scanning Responses . | . . . Cargo Convoy Interrupts . | . . . Stealth | -11 -10 -10 --------- Run | Yrd Mat Sub Distress Signals 1 | . 1 . Communications Jammed . | . . . Distress Signals . | . . . Times Spotted 29 | . 22 7 Peak Tracking Total 3 | . 3 3 Tactical Retreats . | . . . Traps | -11 -10 -10 ------- Run | Yrd Mat Sub Traps Triggered 1 | . 1 . Indirectly . | . . . Trap Hack Attempts . | . . . Triggered . | . . . Disarmed . | . . . Reprogrammed . | . . . Reused . | . . . Traps Extracted . | . . . Installed . | . . . Triggered . | . . . Machines | -11 -10 -10 ---------- Run | Yrd Mat Sub Machines Disabled 3 | . 3 . Max in Single Turn 1 | . 1 . Machines Repaired . | . . . Machines Dismantled . | . . . Machines Sabotaged . | . . . Overloaded Fab Kills . | . . . Hacking | -11 -10 -10 --------- Run | Yrd Mat Sub Machines Accessed 8 | . 8 . Terminals 7 | . 7 . Fabricators . | . . . Repair Stations 1 | . 1 . Recycling Units . | . . . Scanalyzers . | . . . Garrison Access . | . . . Total Hacks 21 | . 21 . Successful 14 | . 14 . Failed 7 | . 7 . Catastrophic . | . . . Database Lockouts . | . . . Manual 16 | . 16 . Terminals 20 | . 20 . Fabricators . | . . . Repair Stations 1 | . 1 . Recycling Units . | . . . Scanalyzers . | . . . Garrison Access . | . . . Terminal Hacks 5 | . 5 . Robot Analysis 1 | . 1 . Prototype ID Bank 3 | . 3 . Zone Layout 1 | . 1 . Fabricator Hacks . | . . . Repair Station Hacks . | . . . Recycling Unit Hacks . | . . . Scanalyzer . | . . . Garrison Access Hacks . | . . . Unauthorized Hacks 9 | . 9 . Terminals 8 | . 8 . Botnet 3 | . 3 . Skim 5 | . 5 . Fabricators . | . . . Repair Stations 1 | . 1 . Mechanics 1 | . 1 . Recycling Units . | . . . Scanalyzers . | . . . Garrison Access . | . . . Data Cores Recovered . | . . . Used . | . . . Hacking Detections 8 | . 8 . Full Trace Events . | . . . Feedback Events . | . . . Feedback Blocked . | . . . Robot Schematics Acquired . | . . . Robots Built . | . . . Authchips . | . . . Time . | . . . Total Robot Build Rating . | . . . Part Schematics Acquired . | . . . Parts Built . | . . . Authchips . | . . . Time . | . . . Total Part Build Rating . | . . . Parts Repaired . | . . . Time . | . . . Parts Recycled . | . . . Recycled Matter . | . . . Retrieved Matter . | . . . Retrieved Components . | . . . Parts Scanalyzed . | . . . Part Schematics Acquired . | . . . Parts Damaged . | . . . Bothacking | -11 -10 -10 ------------ Run | Yrd Mat Sub Used RIF Installer . | . . . Robots Hacked . | . . . Non-combat . | . . . Combat . | . . . Robot Hacks Applied . | . . . Relay Couplers Released . | . . . Fabnet Peak Effective % . | . . . Robots Rewired . | . . . Allies Hacked . | . . . Hacks Repelled . | . . . Allies | -11 -10 -10 -------- Run | Yrd Mat Sub Total Allies . | . . . Largest Group . | . . . Highest-Rated Group . | . . . Highest-Rated Ally . | . . . Total Orders . | . . . Ally Attacks . | . . . Total Damage . | . . . Kills . | . . . Allies Corrupted . | . . . Allies Melted . | . . . Intel | -11 -10 -10 ------- Run | Yrd Mat Sub Robot Analysis Total 1 | . 1 . Derelict Logs Recovered 1 | . . 1 Drone Launches . | . . . Drone Recoveries . | . . . Exploration | -11 -10 -10 ------------- Run | Yrd Mat Sub Turns Passed 1097 | . 951 146 Spaces Moved 642 | 1 610 31 Core . | . . . Treads 4 | . . 4 Legs 638 | 1 610 27 Wheels . | . . . Hover . | . . . Flight . | . . . Fastest Speed 120 | 120 120 160 Average Speed 137 | 120 135 186 Slowest Speed 190 | 120 190 190 Overloaded Moves . | . . . Propulsion Burnouts . | . . . Robots Hopped . | . . . Cave-ins Triggered . | . . . Exploration Rate (%) 30 | 1 89 2 Regions Visited 2 Branch Regions 1 Pre-discovered Areas 4 | . 3 1 Known Exits Taken 1 | . 1 . Unknown Exits Taken 1 | 1 . . Scrap Searched . | . . . Spaces Dug . | . . . Terrain Destroyed . | . . . Melee . | . . . Projectile . | . . . AOE . | . . . Terrain Rammed . | . . . Walls Destroyed . | . . . Machines Disabled . | . . . Actions | -11 -10 -10 --------- Run | Yrd Mat Sub Total 749 | . 680 69 Wait 26 | . 26 . Move 640 | . 609 31 Hop . | . . . Pick Up 9 | . 7 2 Fast Attach 2 | . 2 . Attach 6 | . . 6 Detach . | . . . Swap 3 | . 1 2 Drop 5 | . 5 . Fire 57 | . 29 28 Melee . | . . . Ram . | . . . Kick 1 | . 1 . Crush . | . . . Escape Stasis . | . . . Rewire . | . . . Trap . | . . . Miscellaneous . | . . . Route ------- -11/Scrapyard -10/Materials (discovered 5 exits: *Mat x3 / [*Min] / *Sub) -10/Subcaves History --------- Turn | Location | Event 1 | -11/Scrapyard | Discovered new exit (range 0) 1 | -11/Scrapyard | Entered Materials 216 | -10/Materials | Discovered new exit (range 16) 291 | -10/Materials | Discovered new exit (range 15) 303 | -10/Materials | Build established: Mutant 630 | -10/Materials | Discovered new exit (range 5) 798 | -10/Materials | Learned location of Subcaves (-10) 829 | -10/Materials | Identified exit to Subcaves 866 | -10/Materials | Identified exit to Materials 869 | -10/Materials | Learned 4 Materials zone layouts 907 | -10/Materials | Learned location of Recycling (-7) 952 | -10/Materials | Entered Subcaves 984 | -10/Subcaves | Learned location of Zion (-7) 994 | -10/Subcaves | Ambushed by Subdweller buried in earth 1028 | -10/Subcaves | Core integrity fell below 50% 1031 | -10/Subcaves | Ambushed by Subdweller buried in earth 1031 | -10/Subcaves | Ambushed by Subdweller buried in earth 1031 | -10/Subcaves | Ambushed by Subdweller buried in earth 1070 | -10/Subcaves | Core integrity fell below 20% 1098 | -10/Subcaves | Destroyed by IH-JN2(R) with Subdweller Machine Gun Last Messages --------------- 01042_ Ion Engine destroyed. 01043_ Aluminum Leg destroyed. 01045_ The unstable cave ceiling collapses. 01047_ 9L-XCA(R) suffers critical hit (Burn). 01050_ Subatomizers dissect the Sub. Power Source. 01051_ Med. Laser destroyed. 01053_ Seismic Detector destroyed. 01058_ PP-ZYV(R) affixes Scrap Shield Fragment to Scrap Shield. 01063_ Subatomizers dissect the Sub. Power Source. 01072_ T0-0XT(R) destroyed. 01074_ PP-ZYV(R) suffers critical hit (Destroy). 01075_ Subatomizers dissect the Sub. Power Source. 01076_ Lgt. Ion Engine destroyed. 01083_ PP-ZYV(R) destroyed. 01087_ Acquired 46 matter. IH-JN2(R) emerges from concealment. 01090_ Subatomizers dissect the Sub. Power Source. 01092_ Lgt. Treads destroyed. 01093_ Acquired 2 matter. Map ----- +----------------------------------------------------+ | ?????????????????????????????????????????????????? | | ?????????????????????????????????????????????????? | | ?????????????????????????????????????????????????? | | ?????????????????????????????????????????????????? | | ?????????????????????????????????????????????????? | | ?????????????????????????????????????????????????? | | ?????????????????????????????????????????????????? | | ?????????????????????????????????????????????????? | | ?????????????????????????????????????????????????? | | ?????????????????????????????????????????????????? | | ?????????????????????????????????????????????????? | | ?????????????????????????????????????????????????? | | ?????????????????????????????????????????????????? | | ?????????????????????????????????????????????????? | | ?????????????????????????????????????????????????? | | ?????????????????????????????????????????????????? | | ?????????????????????????????????????????????????? | | ?????????????????????????????????????????????????? | | ?????????????????????????????????????????????????? | | ?????????????????????????????????????????????????? | | ??????????????????????###########????????????????? | | ??????#????????????##?# ##???????????????? | | ?????? #??????##;;# # #???????????????? | | ?????? #### = #????????????????? | | ?????? &% #????????????????? | | ?????? # # ; [@* #=%#??????????????? | | ??????? ???## ; =| *!%=R ??????????? | | ???????# # ]! R #??????? | | ????????# ; ##### ???????? | | ????????#### # # # ; ;;#????????#???????? | | ?????????????#?#### ######????????????????? | | ??????????????????## ;#####?????????????????????? | | ???????????????????####??????????????????????????? | | ?????????????????????????????????????????????????? | | ?????????????????????????????????????????????????? | | ?????????????????????????????????????????????????? | | ?????????????????????????????????????????????????? | | ?????????????????????????????????????????????????? | | ?????????????????????????????????????????????????? | | ?????????????????????????????????????????????????? | | ?????????????????????????????????????????????????? | | ?????????????????????????????????????????????????? | | ?????????????????????????????????????????????????? | | ?????????????????????????????????????????????????? | | ?????????????????????????????????????????????????? | | ?????????????????????????????????????????????????? | | ?????????????????????????????????????????????????? | | | | | | | +----------------------------------------------------+ Best States ------------- Heat Dissipation 25 Energy Generation 10 Energy Capacity 250 Matter Stores 300 Matter Capacity 300 Sight Range 16 Terrain Scan Density 10 Armor Coverage 150 Resistance: KI 20 Resistance: TH 20 Resistance: EX 20 Resistance: EM 20 Resistance: I 20 Resistance: S 20 Resistance: P 20 Evasion (%) 55 Recoil Reduction 2 Offensive Hacking 10 Item Schematics ----------------- None Robot Schematics ------------------ None Fabricated ------------ Nothing Alien Tech Used ----------------- None Achievements -------------- None Challenges ------------ None Game ------ Seed PhysicsHellfireGuard Manual? 0 Play Time 00:12:09 Cumulative 323.7 hours Start 2024.08.29 @ 14:16:51 End 2024.08.29 @ 14:34:57 Sessions 1 Manual Loads 0 Difficulty Adventurer Special Mode None Game No. 247 Rogue 63 Adventurer 158 Explorer 26 Win Type - Total 1 Types 1/0/0/0/0/0/0/0/0 Lore% 77 Gallery% 74 Achievement% 68 Wizard Run 0 Options --------- Layout 2 ASCII 0 Keyboard 0 Movement Mouse Keybinds 0 Fullscreen 0 Font 18/CogNarrow Map View 64x51 Zoom Use 0% Tactical HUD 1 Map Filters NONE Filters BRIGHTNESS(115)|SATURATION(100)|LOW_CONTRAST(0,16,30) Steam 1 RUN: f09fbb2b-70cb-45e8-b2ab-18dba0ced37e